Workbook

Sheet 入力シート
A3: PCI症例数 | C3: 0 | D3: 特殊Balloon Catheter | E3: Wolverine | F3: 0 | G3: MicroCatheter | H3: Asahi Caravel | I3: 0 | J3: IVUS Imaging Device | K3: ボストン | L3: 0 | M3: 新規PM DDD | N3: Medtronic | O3: 0 | P3: 交換PM DDD | Q3: Medtronic | R3: 0
A4: FFR症例数 | C4: 0 | E4: Ryusei | F4: 0 | H4: Zizai | I4: 0 | K4: テルモ | L4: 0 | N4: BIOTRONIK | O4: 0 | Q4: BIOTRONIK | R4: 0
A5: FFR | B5: PressureWireX | C5: 0 | E5: NSE | F5: 0 | H5: Mizuki | I5: 0 | K5: フィリップス | L5: 0 | N5: abbott | O5: 0 | Q5: abbott | R5: 0
B6: COMETⅡ | C6: 0 | E6: Score Flex NC | F6: 0 | H6: Mogul | I6: 0 | K6: ニプロ | L6: 0 | N6: Microport | O6: 0 | Q6: Microport | R6: 0
B7: FFRangio | C7: 0 | E7: Angio Sculpt | F7: 0 | I7: 0 | K7: アシスト | L7: 0 | N7: Lifeline | O7: 0 | Q7: Lifeline | R7: 0
C8: 0 | F8: 0 | I8: 0 | L8: 0 | M8: 新規PM SSI | N8: Medtronic | O8: 0 | P8: 交換PM SSI | Q8: Medtronic | R8: 0
C9: 0 | F9: 0 | I9: 0 | L9: 0 | N9: BIOTRONIK | O9: 0 | Q9: BIOTRONIK | R9: 0
A10: Guiding Catheter | B10: ASAHI Hyperion | C10: 0 | F10: 0 | G10: 貫通Catheter | H10: ASAHI Corsair Pro | I10: 0 | L10: 0 | N10: abbott | O10: 0 | Q10: abbott | R10: 0
B11: Heartrail2 | C11: 0 | F11: 0 | H11: Tornus Pro | I11: 0 | L11: 0 | N11: Microport | O11: 0 | Q11: Microport | R11: 0
B12: LAUNCHER/TAIGA | C12: 0 | D12: Coronary DCB | E12: SeQuent Please | F12: 0 | H12: Finecross | I12: 0 | L12: 0 | N12: Lifeline | O12: 0 | Q12: Lifeline | R12: 0
B13: ROADMASTER | C13: 0 | E13: Agent | F13: 0 | H13: ルミネ | I13: 0 | L13: 0 | M13: 新規CRT-P | N13: Medtronic | O13: 0 | P13: 交換CRT-P | Q13: Medtronic | R13: 0
C14: 0 | F14: 0 | I14: 0 | J14: OCT Imaging Device | K14: Fast View | L14: 0 | N14: BIOTRONIK | O14: 0 | Q14: BIOTRONIK | R14: 0
C15: 0 | F15: 0 | I15: 0 | K15: Dragonfly | L15: 0 | N15: abbott | O15: 0 | Q15: abbott | R15: 0
C16: 0 | D16: Coronary Stent | E16: Ultimaster | F16: 0 | G16: DLC | H16: Asahi SASUKE | I16: 0 | L16: 0 | N16: Microport | O16: 0 | Q16: Microport | R16: 0
A17: Guide Wire | B17: 朝日インテック | C17: 0 | E17: Xience | F17: 0 | H17: Crusade Type-R | I17: 0 | L17: 0 | N17: Lifeline | O17: 0 | Q17: Lifeline | R17: 0
B18: テルモ | C18: 0 | E18: Synergy XD | F18: 0 | I18: 0 | J18: 止血Device | K18: Perclose | L18: 0 | M18: 新規CRT-D | N18: Medtronic | O18: 0 | P18: 交換CRT-D | Q18: Medtronic | R18: 0
B19: アボット | C19: 0 | E19: Resolute Onyx | F19: 0 | G19: Aspiration Catheter | H19: Rebirth Pro | I19: 0 | K19: Exoseal | L19: 0 | N19: BIOTRONIK | O19: 0 | Q19: BIOTRONIK | R19: 0
B20: ボストン | C20: 0 | E20: Orsiro | F20: 0 | H20: Thrombuster | I20: 0 | K20: Angio-seal | L20: 0 | N20: abbott | O20: 0 | Q20: abbott | R20: 0
B21: 大塚メディカル | C21: 0 | E21: GRAFTMASTER | F21: 0 | H21: Export Advance | I21: 0 | L21: 0 | N21: Microport | O21: 0 | Q21: Microport | R21: 0
B22: ニプロ | C22: 0 | E22: Croflex ISAR NEO | F22: 0 | H22: Eliminate | I22: 0 | J22: Atherectomy | K22: Diamondback | L22: 0 | N22: Lifeline | O22: 0 | Q22: Lifeline | R22: 0
C23: 0 | F23: 0 | I23: 0 | K23: ROTA | L23: 0 | M23: 新規ICD | N23: Medtronic | O23: 0 | P23: 交換ICD | Q23: Medtronic | R23: 0
C24: 0 | F24: 0 | I24: 0 | K24: DCA | L24: 0 | N24: BIOTRONIK | O24: 0 | Q24: BIOTRONIK | R24: 0
A25: Balloon Catheter | B25: テルモ | C25: 0 | F25: 0 | I25: 0 | K25: Excimer Laser | L25: 0 | N25: abbott | O25: 0 | Q25: abbott | R25: 0
B26: カネカ | C26: 0 | D26: Guide Extension | E26: ニプロ | F26: 0 | G26: Exchange Device | H26: KUSABI | I26: 0 | L26: 0 | N26: Microport | O26: 0 | Q26: Microport | R26: 0
B27: ネイチ | C27: 0 | E27: カネカ | F27: 0 | H27: Trapper | I27: 0 | J27: IAB | K27: ゲティンゲ | L27: 0 | N27: Lifeline | O27: 0 | Q27: Lifeline | R27: 0
B28: メドトロ | C28: 0 | E28: メドトロ | F28: 0 | H28: EZ Keeper | I28: 0 | K28: 泉工医科 | L28: 0 | N28: JLL S-ICD | O28: 0 | Q28: JLL S-ICD | R28: 0
B29: アボット | C29: 0 | E29: ボストン | F29: 0 | I29: 0 | K29: 東海メディカル | L29: 0 | M29: ICM | N29: Medtronic | O29: 0 | P29: リードレスPM | Q29: Med Micra | R29: 0
B30: 朝日インテック | C30: 0 | F30: 0 | G30: 異物除去 | H30: FILTRAP | I30: 0 | L30: 0 | N30: BIOTRONIK | O30: 0 | R30: 0
B31: ニプロ | C31: 0 | F31: 0 | H31: SoutenirCV | I31: 0 | L31: 0 | N31: abbott | O31: 0 | R31: 0
B32: ボストン | C32: 0 | F32: 0 | I32: 0 | L32: 0 | O32: 0 | R32: 0
C33: 0 | F33: 0 | I33: 0 | O33: 0 | R33: 0
C34: 0
C35: 0
A61: EVT件数 | C61: 0 | D61: 0.014”BDC | E61: コヨーテ | F61: 0 | G61: 特殊Balloon Catheter | H61: カッティングBC | I61: 0 | J61: Aspiration Catheter | K61: Rebirth Pro2 | L61: 0 | M61: ILIAC STENT | N61: Epic | O61: 0
A62: EVAR件数 | C62: 0 | E62: コヨーテES | F62: 0 | H62: NSE PTA | I62: 0 | K62: Thrombuster | L62: 0 | N62: ルミネックス | O62: 0
A63: TEVAR件数 | C63: 0 | E63: ウルトラバースRx | F63: 0 | H63: VASCUTRACK | I63: 0 | L63: 0 | N63: スマート | O63: 0
A64: BAV件数 | C64: 0 | E64: アビエーター | F64: 0 | I64: 0 | L64: 0 | N64: VBX | O64: 0
A65: IVC Filter件数 | C65: 0 | E65: シデンHP | F65: 0 | I65: 0 | L65: 0 | N65: エクスプレスLD | O65: 0
A66: その他件数 | C66: 0 | E66: マストリー | F66: 0 | I66: 0 | J66: 異物除去 | K66: FILTRAP | L66: 0 | N66: Misago | O66: 0
A67: EVT治療部位 複数選択可 | B67: Aorta | C67: 0 | E67: シデン | F67: 0 | G67: 弁拡張 Balloon | H67: イノウエバルーン | I67: 0 | K67: SoutenirCV | L67: 0 | O67: 0
B68: Iliac | C68: 0 | E68: JADE | F68: 0 | I68: 0 | L68: 0 | O68: 0
B69: SFA/POP/CFA | C69: 0 | F69: 0 | I69: 0 | L69: 0 | O69: 0
B70: BK | C70: 0 | F70: 0 | G70: MicroCatheter | H70: プロマネント | I70: 0 | J70: IVUS Imaging Device | K70: ボストン | L70: 0 | M70: SFA STENT | N70: ELUVIA | O70: 0
B71: Subclavian | C71: 0 | F71: 0 | H71: Caravel MC | I71: 0 | K71: フィリップス | L71: 0 | N71: Supera | O71: 0
B72: Renal | C72: 0 | D72: 0.018”BDC | E72: スターリング | F72: 0 | H72: Zizai | I72: 0 | K72: テルモ | L72: 0 | N72: バイアバーン | O72: 0
B73: Shunt PTA | C73: 0 | E73: Senri | F73: 0 | I73: 0 | L73: 0 | O73: 0
C74: 0 | F74: 0 | I74: 0 | L74: 0 | O74: 0
A75: Guiding Catheter | B75: Destination | C75: 0 | F75: 0 | I75: 0 | L75: 0 | M75: Stent Graft | N75: ゴア腹部 | O75: 0
B76: Parent | C76: 0 | F76: 0 | I76: 0 | L76: 0 | N76: メドトロ腹部 | O76: 0
B77: CROSSROADS | C77: 0 | D77: 0.035”BDC | E77: マスタング | F77: 0 | G77: 貫通Catheter | H77: コルセアPV | I77: 0 | L77: 0 | O77: 0
B78: BriteTip | C78: 0 | E78: アルマダ35 | F78: 0 | H78: コルセアアルメット | I78: 0 | J78: 止血Device | K78: Perclose | L78: 0 | O78: 0
C79: 0 | F79: 0 | H79: 一番槍PAD2 | I79: 0 | K79: Exoseal | L79: 0 | O79: 0
C80: 0 | F80: 0 | H80: Guidezilla | I80: 0 | K80: Angio-seal | L80: 0 | M80: IVC Filter | N80: デナリ | O80: 0
C81: 0 | F81: 0 | I81: 0 | L81: 0 | N81: デナリ回収 | O81: 0
A82: Guide Wire | B82: 朝日インテック | C82: 0 | D82: DCB | E82: Ranger | F82: 0 | I82: 0 | L82: 0 | O82: 0
B83: ボストン | C83: 0 | E83: ルートニクス | F83: 0 | G83: DLC | H83: クルセードPAD | I83: 0 | J83: Atherectomy他 | K83: クロッサー | L83: 0 | O83: 0
B84: テルモ | C84: 0 | E84: インパクト | F84: 0 | I84: 0 | K84: OUTBACK | L84: 0 | O84: 0
B85: ニプロ | C85: 0 | F85: 0 | I85: 0 | L85: 0 | M85: Renal STENT | N85: ジェネシス | O85: 0
B86: コーディス | C86: 0 | F86: 0 | L86: 0 | N86: エクスプレスSD | O86: 0
C87: 0 | F87: 0 | L87: 0 | O87: 0
C88: 0

Sheet 集計シート
G1: =SUBTOTAL(105,A7:A9415) -> 2000-01-01 | I1: ～ | J1: =SUBTOTAL(104,A7:A9415) -> 2000-01-01
B3: =入力シート!A3 -> PCI症例数 | C3: =入力シート!A4 -> FFR症例数 | D3: =入力シート!A5 -> FFR | I3: =入力シート!A10 -> Guiding Catheter | P3: =入力シート!A17 -> Guide Wire | X3: =入力シート!A25 -> Balloon Catheter | AI3: =入力シート!D3 -> 特殊Balloon Catheter | AR3: =入力シート!D12 -> Coronary DCB | AV3: =入力シート!D16 -> Coronary Stent | BF3: =入力シート!D26 -> Guide Extension | BN3: =入力シート!G3 -> MicroCatheter | BU3: =入力シート!G10 -> 貫通Catheter | CA3: =入力シート!G16 -> DLC | CD3: =入力シート!G19 -> Aspiration Catheter | CK3: =入力シート!G26 -> Exchange Device | CO3: =入力シート!G30 -> 異物除去 | CS3: =入力シート!J3 -> IVUS Imaging Device | DD3: =入力シート!J14 -> OCT Imaging Device | DH3: =入力シート!J18 -> 止血Device | DL3: =入力シート!J22 -> Atherectomy | DQ3: =入力シート!J27 -> IAB | DW3: =入力シート!M3 -> 新規PM DDD | EB3: =入力シート!M8 -> 新規PM SSI | EG3: =入力シート!M13 -> 新規CRT-P | EL3: =入力シート!M18 -> 新規CRT-D | EQ3: =入力シート!M23 -> 新規ICD | EW3: =入力シート!M29 -> ICM | FB3: =入力シート!P3 -> 交換PM DDD | FG3: =入力シート!P8 -> 交換PM SSI | FL3: =入力シート!P13 -> 交換CRT-P | FQ3: =入力シート!P18 -> 交換CRT-D | FV3: =入力シート!P23 -> 交換ICD | GB3: =入力シート!P29 -> リードレスPM
B4: =SUBTOTAL(109,B7:B3939) -> 15 | C4: 10 | D4: 2 | E4: 3 | F4: 5 | G4: 0 | H4: 0 | I4: 12 | J4: 1 | K4: 2 | L4: 2 | M4: 0 | N4: 0 | O4: 0 | P4: 5 | Q4: 1 | R4: 1 | S4: 1 | T4: 1 | U4: 2 | V4: 0 | W4: 0 | X4: 2 | Y4: 1 | Z4: 1 | AA4: 2 | AB4: 1 | AC4: 1 | AD4: 2 | AE4: 1 | AF4: 0 | AG4: 0 | AH4: =SUBTOTAL(109,AH7:AH3939) -> 0 | AI4: 5 | AJ4: 1 | AK4: 5 | AL4: 1 | AM4: 1 | AN4: 0 | AO4: 0 | AP4: 0 | AQ4: 0 | AR4: 3 | AS4: 3 | AT4: 0 | AU4: 0 | AV4: 2 | AW4: 3 | AX4: 9 | AY4: 2 | AZ4: 5 | BA4: 1 | BB4: 4 | BC4: 0 | BD4: 0 | BE4: 0 | BF4: 3 | BG4: 2 | BH4: 5 | BI4: 2 | BJ4: 0 | BK4: 0 | BL4: 0 | BM4: 0 | BN4: =SUBTOTAL(109,BN7:BN3939) -> 5 | BO4: 5 | BP4: 1 | BQ4: 1 | BR4: 0 | BS4: 0 | BT4: 0 | BU4: 5 | BV4: 2 | BW4: 2 | BX4: 2 | BY4: 0 | BZ4: 0 | CA4: 5 | CB4: 4 | CC4: 0 | CD4: 1 | CE4: 1 | CF4: 5 | CG4: 5 | CH4: 0 | CI4: 0 | CJ4: 0 | CK4: 4 | CL4: 4 | CM4: 4 | CN4: 0 | CO4: 4 | CP4: 2 | CQ4: 0 | CR4: 0 | CS4: 1 | CT4: =SUBTOTAL(109,CT7:CT3939) -> 1 | CU4: 5 | CV4: 1 | CW4: 5 | CX4: 0 | CY4: 0 | CZ4: 0 | DA4: 0 | DB4: 0 | DC4: 0 | DD4: 5 | DE4: 5 | DF4: 0 | DG4: 0 | DH4: 4 | DI4: 1 | DJ4: 4 | DK4: 0 | DL4: 4 | DM4: 3 | DN4: 5 | DO4: 2 | DP4: 0 | DQ4: 1 | DR4: 2 | DS4: 1 | DT4: 0 | DU4: 0 | DV4: 0 | DW4: 1 | DX4: 1 | DY4: 1 | DZ4: =SUBTOTAL(109,DZ7:DZ3939) -> 1 | EA4: 1 | EB4: 1 | EC4: 1 | ED4: 1 | EE4: 5 | EF4: 5 | EG4: 3 | EH4: 2 | EI4: 1 | EJ4: 1 | EK4: 3 | EL4: 2 | EM4: 1 | EN4: 1 | EO4: 1 | EP4: 2 | EQ4: 3 | ER4: 5 | ES4: 4 | ET4: 6 | EU4: 5 | EV4: 4 | EW4: 1 | EX4: 2 | EY4: 3 | EZ4: 0 | FA4: 0 | FB4: 2 | FC4: 5 | FD4: 5 | FE4: 2 | FF4: =SUBTOTAL(109,FF7:FF3939) -> 2 | FG4: 2 | FH4: 1 | FI4: 5 | FJ4: 3 | FK4: 2 | FL4: 1 | FM4: 5 | FN4: 2 | FO4: 2 | FP4: 2 | FQ4: 1 | FR4: 1 | FS4: 4 | FT4: 1 | FU4: 2 | FV4: 1 | FW4: 4 | FX4: 4 | FY4: 4 | FZ4: 1 | GA4: 1 | GB4: 1 | GC4: 0 | GD4: 0 | GE4: 0 | GF4: 0
B5: =入力シート!A3 -> PCI症例数 | C5: =入力シート!A4 -> FFR症例数 | D5: =入力シート!B5 -> PressureWireX | E5: =入力シート!B6 -> COMETⅡ | F5: =入力シート!B7 -> FFRangio | G5: =入力シート!B8 -> 0 | H5: =入力シート!B9 -> 0 | I5: =入力シート!B10 -> ASAHI Hyperion | J5: =入力シート!B11 -> Heartrail2 | K5: =入力シート!B12 -> LAUNCHER/TAIGA | L5: =入力シート!B13 -> ROADMASTER | M5: =入力シート!B14 -> 0 | N5: =入力シート!B15 -> 0 | O5: =入力シート!B16 -> 0 | P5: =入力シート!B17 -> 朝日インテック | Q5: =入力シート!B18 -> テルモ | R5: =入力シート!B19 -> アボット | S5: =入力シート!B20 -> ボストン | T5: =入力シート!B21 -> 大塚メディカル | U5: =入力シート!B22 -> ニプロ | V5: =入力シート!B23 -> 0 | W5: =入力シート!B24 -> 0 | X5: =入力シート!B25 -> テルモ | Y5: =入力シート!B26 -> カネカ | Z5: =入力シート!B27 -> ネイチ | AA5: =入力シート!B28 -> メドトロ | AB5: =入力シート!B29 -> アボット | AC5: =入力シート!B30 -> 朝日インテック | AD5: =入力シート!B31 -> ニプロ | AE5: =入力シート!B32 -> ボストン | AF5: =入力シート!B33 -> 0 | AG5: =入力シート!B34 -> 0 | AH5: =入力シート!B35 -> 0 | AI5: =入力シート!E3 -> Wolverine | AJ5: =入力シート!E4 -> Ryusei | AK5: =入力シート!E5 -> NSE | AL5: =入力シート!E6 -> Score Flex NC | AM5: =入力シート!E7 -> Angio Sculpt | AN5: =入力シート!E8 -> 0 | AO5: =入力シート!E9 -> 0 | AP5: =入力シート!E10 -> 0 | AQ5: =入力シート!E11 -> 0 | AR5: =入力シート!E12 -> SeQuent Please | AS5: =入力シート!E13 -> Agent | AT5: =入力シート!E14 -> 0 | AU5: =入力シート!E15 -> 0 | AV5: =入力シート!E16 -> Ultimaster | AW5: =入力シート!E17 -> Xience | AX5: =入力シート!E18 -> Synergy XD | AY5: =入力シート!E19 -> Resolute Onyx | AZ5: =入力シート!E20 -> Orsiro | BA5: =入力シート!E21 -> GRAFTMASTER | BB5: =入力シート!E22 -> Croflex ISAR NEO | BC5: =入力シート!E23 -> 0 | BD5: =入力シート!E24 -> 0 | BE5: =入力シート!E25 -> 0 | BF5: =入力シート!E26 -> ニプロ | BG5: =入力シート!E27 -> カネカ | BH5: =入力シート!E28 -> メドトロ | BI5: =入力シート!E29 -> ボストン | BJ5: =入力シート!E30 -> 0 | BK5: =入力シート!E31 -> 0 | BL5: =入力シート!E32 -> 0 | BM5: =入力シート!E33 -> 0 | BN5: =入力シート!H3 -> Asahi Caravel | BO5: =入力シート!H4 -> Zizai | BP5: =入力シート!H5 -> Mizuki | BQ5: =入力シート!H6 -> Mogul | BR5: =入力シート!H7 -> 0 | BS5: =入力シート!H8 -> 0 | BT5: =入力シート!H9 -> 0 | BU5: =入力シート!H10 -> ASAHI Corsair Pro | BV5: =入力シート!H11 -> Tornus Pro | BW5: =入力シート!H12 -> Finecross | BX5: =入力シート!H13 -> ルミネ | BY5: =入力シート!H14 -> 0 | BZ5: =入力シート!H15 -> 0 | CA5: =入力シート!H16 -> Asahi SASUKE | CB5: =入力シート!H17 -> Crusade Type-R | CC5: =入力シート!H18 -> 0 | CD5: =入力シート!H19 -> Rebirth Pro | CE5: =入力シート!H20 -> Thrombuster | CF5: =入力シート!H21 -> Export Advance | CG5: =入力シート!H22 -> Eliminate | CH5: =入力シート!H23 -> 0 | CI5: =入力シート!H24 -> 0 | CJ5: =入力シート!H25 -> 0 | CK5: =入力シート!H26 -> KUSABI | CL5: =入力シート!H27 -> Trapper | CM5: =入力シート!H28 -> EZ Keeper | CN5: =入力シート!H29 -> 0 | CO5: =入力シート!H30 -> FILTRAP | CP5: =入力シート!H31 -> SoutenirCV | CQ5: =入力シート!H32 -> 0 | CR5: =入力シート!H33 -> 0 | CS5: =入力シート!K3 -> ボストン | CT5: =入力シート!K4 -> テルモ | CU5: =入力シート!K5 -> フィリップス | CV5: =入力シート!K6 -> ニプロ | CW5: =入力シート!K7 -> アシスト | CX5: =入力シート!K8 -> 0 | CY5: =入力シート!K9 -> 0 | CZ5: =入力シート!K10 -> 0 | DA5: =入力シート!K11 -> 0 | DB5: =入力シート!K12 -> 0 | DC5: =入力シート!K13 -> 0 | DD5: =入力シート!K14 -> Fast View | DE5: =入力シート!K15 -> Dragonfly | DF5: =入力シート!K16 -> 0 | DG5: =入力シート!K17 -> 0 | DH5: =入力シート!K18 -> Perclose | DI5: =入力シート!K19 -> Exoseal | DJ5: =入力シート!K20 -> Angio-seal | DK5: =入力シート!K21 -> 0 | DL5: =入力シート!K22 -> Diamondback | DM5: =入力シート!K23 -> ROTA | DN5: =入力シート!K24 -> DCA | DO5: =入力シート!K25 -> Excimer Laser | DP5: =入力シート!K26 -> 0 | DQ5: =入力シート!K27 -> ゲティンゲ | DR5: =入力シート!K28 -> 泉工医科 | DS5: =入力シート!K29 -> 東海メディカル | DT5: =入力シート!K30 -> 0 | DU5: =入力シート!K31 -> 0 | DV5: =入力シート!K32 -> 0 | DW5: =入力シート!N3 -> Medtronic | DX5: =入力シート!N4 -> BIOTRONIK | DY5: =入力シート!N5 -> abbott | DZ5: =入力シート!N6 -> Microport | EA5: =入力シート!N7 -> Lifeline | EB5: =入力シート!N8 -> Medtronic | EC5: =入力シート!N9 -> BIOTRONIK | ED5: =入力シート!N10 -> abbott | EE5: =入力シート!N11 -> Microport | EF5: =入力シート!N12 -> Lifeline | EG5: =入力シート!N13 -> Medtronic | EH5: =入力シート!N14 -> BIOTRONIK | EI5: =入力シート!N15 -> abbott | EJ5: =入力シート!N16 -> Microport | EK5: =入力シート!N17 -> Lifeline | EL5: =入力シート!N18 -> Medtronic | EM5: =入力シート!N19 -> BIOTRONIK | EN5: =入力シート!N20 -> abbott | EO5: =入力シート!N21 -> Microport | EP5: =入力シート!N22 -> Lifeline | EQ5: =入力シート!N23 -> Medtronic | ER5: =入力シート!N24 -> BIOTRONIK | ES5: =入力シート!N25 -> abbott | ET5: =入力シート!N26 -> Microport | EU5: =入力シート!N27 -> Lifeline | EV5: =入力シート!N28 -> JLL S-ICD | EW5: =入力シート!N29 -> Medtronic | EX5: =入力シート!N30 -> BIOTRONIK | EY5: =入力シート!N31 -> abbott | EZ5: =入力シート!N32 -> 0 | FA5: =入力シート!N33 -> 0 | FB5: =入力シート!Q3 -> Medtronic | FC5: =入力シート!Q4 -> BIOTRONIK | FD5: =入力シート!Q5 -> abbott | FE5: =入力シート!Q6 -> Microport | FF5: =入力シート!Q7 -> Lifeline | FG5: =入力シート!Q8 -> Medtronic | FH5: =入力シート!Q9 -> BIOTRONIK | FI5: =入力シート!Q10 -> abbott | FJ5: =入力シート!Q11 -> Microport | FK5: =入力シート!Q12 -> Lifeline | FL5: =入力シート!Q13 -> Medtronic | FM5: =入力シート!Q14 -> BIOTRONIK | FN5: =入力シート!Q15 -> abbott | FO5: =入力シート!Q16 -> Microport | FP5: =入力シート!Q17 -> Lifeline | FQ5: =入力シート!Q18 -> Medtronic | FR5: =入力シート!Q19 -> BIOTRONIK | FS5: =入力シート!Q20 -> abbott | FT5: =入力シート!Q21 -> Microport | FU5: =入力シート!Q22 -> Lifeline | FV5: =入力シート!Q23 -> Medtronic | FW5: =入力シート!Q24 -> BIOTRONIK | FX5: =入力シート!Q25 -> abbott | FY5: =入力シート!Q26 -> Microport | FZ5: =入力シート!Q27 -> Lifeline | GA5: =入力シート!Q28 -> JLL S-ICD | GB5: =入力シート!Q29 -> Med Micra | GC5: =入力シート!Q30 -> 0 | GD5: =入力シート!Q31 -> 0 | GE5: =入力シート!Q32 -> 0 | GF5: =入力シート!Q33 -> 0
A6: 日付 | B6: PCI症例数 | C6: FFR症例数 | D6: PressureWireX | E6: COMETⅡ | F6: FFRangio | G6: 0 | H6: 02 | I6: ASAHI Hyperion | J6: Heartrail2 | K6: LAUNCHER/TAIGA | L6: ROADMASTER | M6: 03 | N6: 04 | O6: 05 | P6: 朝日インテック | Q6: テルモ | R6: アボット | S6: ボストン | T6: 大塚メディカル | U6: 06 | V6: 07 | W6: 08 | X6: テルモ9 | Y6: カネカ | Z6: ネイチ | AA6: メドトロ | AB6: アボット10 | AC6: 朝日インテック11 | AD6: ニプロ | AE6: ボストン12 | AF6: 013 | AG6: 014 | AH6: 015 | AI6: Wolverine | AJ6: Ryusei | AK6: NSE | AL6: Score Flex NC | AM6: Angio Sculpt | AN6: 016 | AO6: 017 | AP6: 018 | AQ6: 019 | AR6: SeQuent Please | AS6: Agent | AT6: 020 | AU6: 021 | AV6: Ultimaster | AW6: Xience | AX6: Synergy XD | AY6: Resolute Onyx | AZ6: Orsiro | BA6: GRAFTMASTER | BB6: Croflex ISAR NEO | BC6: 022 | BD6: 023 | BE6: 024 | BF6: ニプロ25 | BG6: カネカ26 | BH6: メドトロ27 | BI6: ボストン28 | BJ6: 029 | BK6: 030 | BL6: 031 | BM6: 032 | BN6: Asahi Caravel | BO6: Zizai | BP6: Mizuki | BQ6: Mogul | BR6: 033 | BS6: 034 | BT6: 035 | BU6: ASAHI Corsair Pro | BV6: Tornus Pro | BW6: Finecross | BX6: ルミネ | BY6: 036 | BZ6: 037 | CA6: Asahi SASUKE | CB6: Crusade Type-R | CC6: 038 | CD6: Rebirth Pro | CE6: Thrombuster | CF6: Export Advance | CG6: Eliminate | CH6: 039 | CI6: 040 | CJ6: 041 | CK6: KUSABI | CL6: Trapper | CM6: EZ Keeper | CN6: 042 | CO6: FILTRAP | CP6: SoutenirCV | CQ6: 043 | CR6: 044 | CS6: OptiCross | CT6: AltaView | CU6: AnteOwl WR | CV6: Navifocus WR | CW6: Eagle Eye | CX6: Refinity | CY6: 045 | CZ6: 046 | DA6: 047 | DB6: 048 | DC6: 049 | DD6: Fast View | DE6: Dragonfly | DF6: 050 | DG6: 051 | DH6: Perclose | DI6: Exoseal | DJ6: Angio-seal | DK6: 052 | DL6: Diamondback | DM6: ROTA | DN6: DCA | DO6: Excimer Laser | DP6: 053 | DQ6: ゲティンゲ | DR6: 泉工医科 | DS6: 東海メディカル | DT6: 054 | DU6: 055 | DV6: 056 | DW6: Medtronic | DX6: BIOTRONIK | DY6: abbott | DZ6: Microport | EA6: Lifeline | EB6: Medtronic57 | EC6: BIOTRONIK58 | ED6: abbott59 | EE6: Microport60 | EF6: Lifeline61 | EG6: Medtronic62 | EH6: BIOTRONIK63 | EI6: abbott64 | EJ6: Microport65 | EK6: Lifeline66 | EL6: Medtronic67 | EM6: BIOTRONIK68 | EN6: abbott69 | EO6: Microport70 | EP6: Lifeline71 | EQ6: Medtronic72 | ER6: BIOTRONIK73 | ES6: abbott74 | ET6: Microport75 | EU6: Lifeline76 | EV6: JLL S-ICD | EW6: Medtronic77 | EX6: BIOTRONIK78 | EY6: abbott79 | EZ6: 080 | FA6: 081 | FB6: Medtronic82 | FC6: BIOTRONIK83 | FD6: abbott84 | FE6: Microport85 | FF6: Lifeline86 | FG6: Medtronic87 | FH6: BIOTRONIK88 | FI6: abbott89 | FJ6: Microport90 | FK6: Lifeline91 | FL6: Medtronic92 | FM6: BIOTRONIK93 | FN6: abbott94 | FO6: Microport95 | FP6: Lifeline96 | FQ6: Medtronic97 | FR6: BIOTRONIK98 | FS6: abbott99 | FT6: Microport100 | FU6: Lifeline101 | FV6: Medtronic102 | FW6: BIOTRONIK103 | FX6: abbott104 | FY6: Microport105 | FZ6: Lifeline106 | GA6: JLL S-ICD107 | GB6: Med Micra | GC6: 0108 | GD6: 0109 | GE6: 0110 | GF6: 0111
A7: 2000-01-01 | B7: 15 | C7: 10 | D7: 2 | E7: 3 | F7: 5 | G7: 0 | H7: 0 | I7: 12 | J7: 1 | K7: 2 | L7: 2 | M7: 0 | N7: 0 | O7: 0 | P7: 5 | Q7: 1 | R7: 1 | S7: 1 | T7: 1 | U7: 2 | V7: 0 | W7: 0 | X7: 2 | Y7: 1 | Z7: 1 | AA7: 2 | AB7: 1 | AC7: 1 | AD7: 2 | AE7: 1 | AF7: 0 | AG7: 0 | AH7: 0 | AI7: 5 | AJ7: 1 | AK7: 5 | AL7: 1 | AM7: 1 | AN7: 0 | AO7: 0 | AP7: 0 | AQ7: 0 | AR7: 3 | AS7: 3 | AT7: 0 | AU7: 0 | AV7: 2 | AW7: 3 | AX7: 9 | AY7: 2 | AZ7: 5 | BA7: 1 | BB7: 4 | BC7: 0 | BD7: 0 | BE7: 0 | BF7: 3 | BG7: 2 | BH7: 5 | BI7: 2 | BJ7: 0 | BK7: 0 | BL7: 0 | BM7: 0 | BN7: 5 | BO7: 5 | BP7: 1 | BQ7: 1 | BR7: 0 | BS7: 0 | BT7: 0 | BU7: 5 | BV7: 2 | BW7: 2 | BX7: 2 | BY7: 0 | BZ7: 0 | CA7: 5 | CB7: 4 | CC7: 0 | CD7: 1 | CE7: 1 | CF7: 5 | CG7: 5 | CH7: 0 | CI7: 0 | CJ7: 0 | CK7: 4 | CL7: 4 | CM7: 4 | CN7: 0 | CO7: 4 | CP7: 2 | CQ7: 0 | CR7: 0 | CS7: 1 | CT7: 1 | CU7: 5 | CV7: 1 | CW7: 5 | CX7: 0 | CY7: 0 | CZ7: 0 | DA7: 0 | DB7: 0 | DC7: 0 | DD7: 5 | DE7: 5 | DF7: 0 | DG7: 0 | DH7: 4 | DI7: 1 | DJ7: 4 | DK7: 0 | DL7: 4 | DM7: 3 | DN7: 5 | DO7: 2 | DP7: 0 | DQ7: 1 | DR7: 2 | DS7: 1 | DT7: 0 | DU7: 0 | DV7: 0 | DW7: 1 | DX7: 1 | DY7: 1 | DZ7: 1 | EA7: 1 | EB7: 1 | EC7: 1 | ED7: 1 | EE7: 5 | EF7: 5 | EG7: 3 | EH7: 2 | EI7: 1 | EJ7: 1 | EK7: 3 | EL7: 2 | EM7: 1 | EN7: 1 | EO7: 1 | EP7: 2 | EQ7: 3 | ER7: 5 | ES7: 4 | ET7: 6 | EU7: 5 | EV7: 4 | EW7: 1 | EX7: 2 | EY7: 3 | EZ7: 0 | FA7: 0 | FB7: 2 | FC7: 5 | FD7: 5 | FE7: 2 | FF7: 2 | FG7: 2 | FH7: 1 | FI7: 5 | FJ7: 3 | FK7: 2 | FL7: 1 | FM7: 5 | FN7: 2 | FO7: 2 | FP7: 2 | FQ7: 1 | FR7: 1 | FS7: 4 | FT7: 1 | FU7: 2 | FV7: 1 | FW7: 4 | FX7: 4 | FY7: 4 | FZ7: 1 | GA7: 1 | GB7: 1 | GC7: 0 | GD7: 0 | GE7: 0 | GF7: 0

Sheet EVT集計シート
G1: =SUBTOTAL(105,A7:A9845) -> 2000-01-01 | I1: ～ | J1: =SUBTOTAL(104,A7:A9845) -> 2000-01-01
B3: =入力シート!A61 -> EVT件数 | C3: =入力シート!A62 -> EVAR件数 | D3: =入力シート!A63 -> TEVAR件数 | E3: =入力シート!A64 -> BAV件数 | F3: =入力シート!A65 -> IVC Filter件数 | G3: =入力シート!A66 -> その他件数 | H3: =入力シート!A67 -> EVT治療部位 複数選択可 | P3: =入力シート!A75 -> Guiding Catheter | W3: =入力シート!A82 -> Guide Wire | AD3: =入力シート!D61 -> 0.014”BDC | AO3: =入力シート!D72 -> 0.018”BDC | AT3: =入力シート!D77 -> 0.035”BDC | AY3: =入力シート!D82 -> DCB | BE3: =入力シート!G61 -> 特殊Balloon Catheter | BK3: =入力シート!G67 -> 弁拡張 Balloon | BN3: =入力シート!G70 -> MicroCatheter | BU3: =入力シート!G77 -> 貫通Catheter | CA3: =入力シート!G83 -> DLC | CD3: =入力シート!J61 -> Aspiration Catheter | CI3: =入力シート!J66 -> 異物除去 | CM3: =入力シート!J70 -> IVUS Imaging Device | CU3: =入力シート!J78 -> 止血Device | CZ3: =入力シート!J83 -> Atherectomy他 | DE3: =入力シート!M61 -> ILIAC STENT | DN3: =入力シート!M70 -> SFA STENT | DS3: =入力シート!M75 -> Stent Graft | DX3: =入力シート!M80 -> IVC Filter | EC3: =入力シート!M85 -> Renal STENT
B4: =SUBTOTAL(109,B7:B1359) -> 10 | C4: 2 | D4: 1 | E4: 2 | F4: 3 | G4: 1 | H4: 2 | I4: 2 | J4: 1 | K4: 1 | L4: 1 | M4: 1 | N4: 1 | O4: 0 | P4: 4 | Q4: 1 | R4: 1 | S4: 1 | T4: 0 | U4: 0 | V4: 0 | W4: 5 | X4: 3 | Y4: 2 | Z4: 1 | AA4: 1 | AB4: 0 | AC4: 0 | AD4: 5 | AE4: 2 | AF4: 2 | AG4: 5 | AH4: =SUBTOTAL(109,AH7:AH1359) -> 2 | AI4: =SUBTOTAL(109,AI7:AI1359) -> 2 | AJ4: =SUBTOTAL(109,AJ7:AJ1359) -> 2 | AK4: =SUBTOTAL(109,AK7:AK1359) -> 5 | AL4: =SUBTOTAL(109,AL7:AL1359) -> 0 | AM4: =SUBTOTAL(109,AM7:AM1359) -> 0 | AN4: =SUBTOTAL(109,AN7:AN1359) -> 0 | AO4: =SUBTOTAL(109,AO7:AO1359) -> 3 | AP4: =SUBTOTAL(109,AP7:AP1359) -> 2 | AQ4: =SUBTOTAL(109,AQ7:AQ1359) -> 0 | AR4: =SUBTOTAL(109,AR7:AR1359) -> 0 | AS4: =SUBTOTAL(109,AS7:AS1359) -> 0 | AT4: =SUBTOTAL(109,AT7:AT1359) -> 2 | AU4: =SUBTOTAL(109,AU7:AU1359) -> 2 | AV4: =SUBTOTAL(109,AV7:AV1359) -> 0 | AW4: =SUBTOTAL(109,AW7:AW1359) -> 0 | AX4: =SUBTOTAL(109,AX7:AX1359) -> 0 | AY4: =SUBTOTAL(109,AY7:AY1359) -> 5 | AZ4: =SUBTOTAL(109,AZ7:AZ1359) -> 3 | BA4: =SUBTOTAL(109,BA7:BA1359) -> 3 | BB4: =SUBTOTAL(109,BB7:BB1359) -> 0 | BC4: =SUBTOTAL(109,BC7:BC1359) -> 0 | BD4: =SUBTOTAL(109,BD7:BD1359) -> 0 | BE4: =SUBTOTAL(109,BE7:BE1359) -> 4 | BF4: =SUBTOTAL(109,BF7:BF1359) -> 5 | BG4: =SUBTOTAL(109,BG7:BG1359) -> 4 | BH4: =SUBTOTAL(109,BH7:BH1359) -> 0 | BI4: =SUBTOTAL(109,BI7:BI1359) -> 0 | BJ4: =SUBTOTAL(109,BJ7:BJ1359) -> 0 | BK4: =SUBTOTAL(109,BK7:BK1359) -> 5 | BL4: =SUBTOTAL(109,BL7:BL1359) -> 0 | BM4: =SUBTOTAL(109,BM7:BM1359) -> 0 | BN4: =SUBTOTAL(109,BN7:BN1359) -> 4 | BO4: =SUBTOTAL(109,BO7:BO1359) -> 2 | BP4: =SUBTOTAL(109,BP7:BP1359) -> 3 | BQ4: =SUBTOTAL(109,BQ7:BQ1359) -> 0 | BR4: =SUBTOTAL(109,BR7:BR1359) -> 0 | BS4: =SUBTOTAL(109,BS7:BS1359) -> 0 | BT4: =SUBTOTAL(109,BT7:BT1359) -> 0 | BU4: =SUBTOTAL(109,BU7:BU1359) -> 5 | BV4: =SUBTOTAL(109,BV7:BV1359) -> 3 | BW4: =SUBTOTAL(109,BW7:BW1359) -> 2 | BX4: =SUBTOTAL(109,BX7:BX1359) -> 2 | BY4: =SUBTOTAL(109,BY7:BY1359) -> 0 | BZ4: =SUBTOTAL(109,BZ7:BZ1359) -> 0 | CA4: =SUBTOTAL(109,CA7:CA1359) -> 5 | CB4: =SUBTOTAL(109,CB7:CB1359) -> 0 | CC4: =SUBTOTAL(109,CC7:CC1359) -> 0 | CD4: =SUBTOTAL(109,CD7:CD1359) -> 3 | CE4: =SUBTOTAL(109,CE7:CE1359) -> 6 | CF4: =SUBTOTAL(109,CF7:CF1359) -> 0 | CG4: =SUBTOTAL(109,CG7:CG1359) -> 0 | CH4: =SUBTOTAL(109,CH7:CH1359) -> 0 | CI4: =SUBTOTAL(109,CI7:CI1359) -> 2 | CJ4: =SUBTOTAL(109,CJ7:CJ1359) -> 2 | CK4: =SUBTOTAL(109,CK7:CK1359) -> 0 | CL4: =SUBTOTAL(109,CL7:CL1359) -> 0 | CM4: =SUBTOTAL(109,CM7:CM1359) -> 5 | CN4: =SUBTOTAL(109,CN7:CN1359) -> 2 | CO4: =SUBTOTAL(109,CO7:CO1359) -> 3 | CP4: =SUBTOTAL(109,CP7:CP1359) -> 0 | CQ4: =SUBTOTAL(109,CQ7:CQ1359) -> 0 | CR4: =SUBTOTAL(109,CR7:CR1359) -> 0 | CS4: =SUBTOTAL(109,CS7:CS1359) -> 0 | CT4: =SUBTOTAL(109,CT7:CT1359) -> 0 | CU4: =SUBTOTAL(109,CU7:CU1359) -> 2 | CV4: =SUBTOTAL(109,CV7:CV1359) -> 3 | CW4: =SUBTOTAL(109,CW7:CW1359) -> 4 | CX4: =SUBTOTAL(109,CX7:CX1359) -> 0 | CY4: =SUBTOTAL(109,CY7:CY1359) -> 0 | CZ4: =SUBTOTAL(109,CZ7:CZ1359) -> 2 | DA4: =SUBTOTAL(109,DA7:DA1359) -> 5 | DB4: =SUBTOTAL(109,DB7:DB1359) -> 0 | DC4: =SUBTOTAL(109,DC7:DC1359) -> 0 | DD4: =SUBTOTAL(109,DD7:DD1359) -> 0 | DE4: =SUBTOTAL(109,DE7:DE1359) -> 3 | DF4: =SUBTOTAL(109,DF7:DF1359) -> 2 | DG4: =SUBTOTAL(109,DG7:DG1359) -> 3 | DH4: =SUBTOTAL(109,DH7:DH1359) -> 2 | DI4: =SUBTOTAL(109,DI7:DI1359) -> 2 | DJ4: =SUBTOTAL(109,DJ7:DJ1359) -> 2 | DK4: =SUBTOTAL(109,DK7:DK1359) -> 0 | DL4: =SUBTOTAL(109,DL7:DL1359) -> 0 | DM4: =SUBTOTAL(109,DM7:DM1359) -> 0 | DN4: =SUBTOTAL(109,DN7:DN1359) -> 4 | DO4: =SUBTOTAL(109,DO7:DO1359) -> 3 | DP4: =SUBTOTAL(109,DP7:DP1359) -> 2 | DQ4: =SUBTOTAL(109,DQ7:DQ1359) -> 0 | DR4: =SUBTOTAL(109,DR7:DR1359) -> 0 | DS4: =SUBTOTAL(109,DS7:DS1359) -> 4 | DT4: =SUBTOTAL(109,DT7:DT1359) -> 2 | DU4: =SUBTOTAL(109,DU7:DU1359) -> 0 | DV4: =SUBTOTAL(109,DV7:DV1359) -> 0 | DW4: =SUBTOTAL(109,DW7:DW1359) -> 0 | DX4: =SUBTOTAL(109,DX7:DX1359) -> 3 | DY4: =SUBTOTAL(109,DY7:DY1359) -> 2 | DZ4: =SUBTOTAL(109,DZ7:DZ1359) -> 0 | EA4: =SUBTOTAL(109,EA7:EA1359) -> 0 | EB4: =SUBTOTAL(109,EB7:EB1359) -> 0 | EC4: =SUBTOTAL(109,EC7:EC1359) -> 3 | ED4: =SUBTOTAL(109,ED7:ED1359) -> 3 | EE4: =SUBTOTAL(109,EE7:EE1359) -> 0 | EF4: =SUBTOTAL(109,EF7:EF1359) -> 0 | EG4: =SUBTOTAL(109,EG7:EG1359) -> 0 | EH4: =SUBTOTAL(109,EH7:EH1359) -> 0 | EI4: =SUBTOTAL(109,EI7:EI1359) -> 0 | EJ4: =SUBTOTAL(109,EJ7:EJ1359) -> 0 | EK4: =SUBTOTAL(109,EK7:EK1359) -> 0 | EL4: =SUBTOTAL(109,EL7:EL1359) -> 0 | EM4: =SUBTOTAL(109,EM7:EM1359) -> 0 | EN4: =SUBTOTAL(109,EN7:EN1359) -> 0 | EO4: =SUBTOTAL(109,EO7:EO1359) -> 0 | EP4: =SUBTOTAL(109,EP7:EP1359) -> 0 | EQ4: =SUBTOTAL(109,EQ7:EQ1359) -> 0 | ER4: =SUBTOTAL(109,ER7:ER1359) -> 0 | ES4: =SUBTOTAL(109,ES7:ES1359) -> 0 | ET4: =SUBTOTAL(109,ET7:ET1359) -> 0 | EU4: =SUBTOTAL(109,EU7:EU1359) -> 0 | EV4: =SUBTOTAL(109,EV7:EV1359) -> 0 | EW4: =SUBTOTAL(109,EW7:EW1359) -> 0
B5: =入力シート!A61 -> EVT件数 | C5: =入力シート!A62 -> EVAR件数 | D5: =入力シート!A63 -> TEVAR件数 | E5: =入力シート!A64 -> BAV件数 | F5: =入力シート!A65 -> IVC Filter件数 | G5: =入力シート!A66 -> その他件数 | H5: =入力シート!B67 -> Aorta | I5: =入力シート!B68 -> Iliac | J5: =入力シート!B69 -> SFA/POP/CFA | K5: =入力シート!B70 -> BK | L5: =入力シート!B71 -> Subclavian | M5: =入力シート!B72 -> Renal | N5: =入力シート!B73 -> Shunt PTA | O5: =入力シート!B74 -> 0 | P5: =入力シート!B75 -> Destination | Q5: =入力シート!B76 -> Parent | R5: =入力シート!B77 -> CROSSROADS | S5: =入力シート!B78 -> BriteTip | T5: =入力シート!B79 -> 0 | U5: =入力シート!B80 -> 0 | V5: =入力シート!B81 -> 0 | W5: =入力シート!B82 -> 朝日インテック | X5: =入力シート!B83 -> ボストン | Y5: =入力シート!B84 -> テルモ | Z5: =入力シート!B85 -> ニプロ | AA5: =入力シート!B86 -> コーディス | AB5: =入力シート!B87 -> 0 | AC5: =入力シート!B88 -> 0 | AD5: =入力シート!E61 -> コヨーテ | AE5: =入力シート!E62 -> コヨーテES | AF5: =入力シート!E63 -> ウルトラバースRx | AG5: =入力シート!E64 -> アビエーター | AH5: =入力シート!E65 -> シデンHP | AI5: =入力シート!E66 -> マストリー | AJ5: =入力シート!E67 -> シデン | AK5: =入力シート!E68 -> JADE | AL5: =入力シート!E69 -> 0 | AM5: =入力シート!E70 -> 0 | AN5: =入力シート!E71 -> 0 | AO5: =入力シート!E72 -> スターリング | AP5: =入力シート!E73 -> Senri | AQ5: =入力シート!E74 -> 0 | AR5: =入力シート!E75 -> 0 | AS5: =入力シート!E76 -> 0 | AT5: =入力シート!E77 -> マスタング | AU5: =入力シート!E78 -> アルマダ35 | AV5: =入力シート!E79 -> 0 | AW5: =入力シート!E80 -> 0 | AX5: =入力シート!E81 -> 0 | AY5: =入力シート!E82 -> Ranger | AZ5: =入力シート!E83 -> ルートニクス | BA5: =入力シート!E84 -> インパクト | BB5: =入力シート!E85 -> 0 | BC5: =入力シート!E86 -> 0 | BD5: =入力シート!E87 -> 0 | BE5: =入力シート!H61 -> カッティングBC | BF5: =入力シート!H62 -> NSE PTA | BG5: =入力シート!H63 -> VASCUTRACK | BH5: =入力シート!H64 -> 0 | BI5: =入力シート!H65 -> 0 | BJ5: =入力シート!H66 -> 0 | BK5: =入力シート!H67 -> イノウエバルーン | BL5: =入力シート!H68 -> 0 | BM5: =入力シート!H69 -> 0 | BN5: =入力シート!H70 -> プロマネント | BO5: =入力シート!H71 -> Caravel MC | BP5: =入力シート!H72 -> Zizai | BQ5: =入力シート!H73 -> 0 | BR5: =入力シート!H74 -> 0 | BS5: =入力シート!H75 -> 0 | BT5: =入力シート!H76 -> 0 | BU5: =入力シート!H77 -> コルセアPV | BV5: =入力シート!H78 -> コルセアアルメット | BW5: =入力シート!H79 -> 一番槍PAD2 | BX5: =入力シート!H80 -> Guidezilla | BY5: =入力シート!H81 -> 0 | BZ5: =入力シート!H82 -> 0 | CA5: =入力シート!H83 -> クルセードPAD | CB5: =入力シート!H84 -> 0 | CC5: =入力シート!H85 -> 0 | CD5: =入力シート!K61 -> Rebirth Pro2 | CE5: =入力シート!K62 -> Thrombuster | CF5: =入力シート!K63 -> 0 | CG5: =入力シート!K64 -> 0 | CH5: =入力シート!K65 -> 0 | CI5: =入力シート!K66 -> FILTRAP | CJ5: =入力シート!K67 -> SoutenirCV | CK5: =入力シート!K68 -> 0 | CL5: =入力シート!K69 -> 0 | CM5: =入力シート!K70 -> ボストン | CN5: =入力シート!K71 -> フィリップス | CO5: =入力シート!K72 -> テルモ | CP5: =入力シート!K73 -> 0 | CQ5: =入力シート!K74 -> 0 | CR5: =入力シート!K75 -> 0 | CS5: =入力シート!K76 -> 0 | CT5: =入力シート!K77 -> 0 | CU5: =入力シート!K78 -> Perclose | CV5: =入力シート!K79 -> Exoseal | CW5: =入力シート!K80 -> Angio-seal | CX5: =入力シート!K81 -> 0 | CY5: =入力シート!K82 -> 0 | CZ5: =入力シート!K83 -> クロッサー | DA5: =入力シート!K84 -> OUTBACK | DB5: =入力シート!K85 -> 0 | DC5: =入力シート!K86 -> 0 | DD5: =入力シート!K87 -> 0 | DE5: =入力シート!N61 -> Epic | DF5: =入力シート!N62 -> ルミネックス | DG5: =入力シート!N63 -> スマート | DH5: =入力シート!N64 -> VBX | DI5: =入力シート!N65 -> エクスプレスLD | DJ5: =入力シート!N66 -> Misago | DK5: =入力シート!N67 -> 0 | DL5: =入力シート!N68 -> 0 | DM5: =入力シート!N69 -> 0 | DN5: =入力シート!N70 -> ELUVIA | DO5: =入力シート!N71 -> Supera | DP5: =入力シート!N72 -> バイアバーン | DQ5: =入力シート!N73 -> 0 | DR5: =入力シート!N74 -> 0 | DS5: =入力シート!N75 -> ゴア腹部 | DT5: =入力シート!N76 -> メドトロ腹部 | DU5: =入力シート!N77 -> 0 | DV5: =入力シート!N78 -> 0 | DW5: =入力シート!N79 -> 0 | DX5: =入力シート!N80 -> デナリ | DY5: =入力シート!N81 -> デナリ回収 | DZ5: =入力シート!N82 -> 0 | EA5: =入力シート!N83 -> 0 | EB5: =入力シート!N84 -> 0 | EC5: =入力シート!N85 -> ジェネシス | ED5: =入力シート!N86 -> エクスプレスSD | EE5: =入力シート!N87 -> 0
A6: 日付 | B6: EVT件数 | C6: EVAR件数 | D6: TEVAR件数 | E6: BAV件数 | F6: IVC Filter件数 | G6: その他件数 | H6: Aorta | I6: Iliac | J6: SFA/POP/CFA | K6: BK | L6: Subclavian | M6: Renal | N6: Shunt PTA | O6: 0 | P6: Destination | Q6: Parent | R6: CROSSROADS | S6: BriteTip | T6: 02 | U6: 03 | V6: 04 | W6: 朝日インテック | X6: ボストン | Y6: テルモ | Z6: ニプロ | AA6: コーディス | AB6: 05 | AC6: 06 | AD6: コヨーテ | AE6: コヨーテES | AF6: ウルトラバースRx | AG6: アビエーター | AH6: シデンHP | AI6: マストリー | AJ6: シデン | AK6: JADE | AL6: 07 | AM6: 08 | AN6: 09 | AO6: スターリング | AP6: Senri | AQ6: 010 | AR6: 011 | AS6: 012 | AT6: マスタング | AU6: アルマダ35 | AV6: 013 | AW6: 014 | AX6: 015 | AY6: Ranger | AZ6: ルートニクス | BA6: インパクト | BB6: 016 | BC6: 017 | BD6: 018 | BE6: カッティングBC | BF6: NSE PTA | BG6: VASCUTRACK | BH6: 019 | BI6: 020 | BJ6: 021 | BK6: イノウエバルーン | BL6: 022 | BM6: 023 | BN6: プロマネント | BO6: Caravel MC | BP6: Zizai | BQ6: 024 | BR6: 025 | BS6: 026 | BT6: 027 | BU6: コルセアPV | BV6: コルセアアルメット | BW6: 一番槍PAD2 | BX6: Guidezilla | BY6: 028 | BZ6: 029 | CA6: クルセードPAD | CB6: 030 | CC6: 031 | CD6: Rebirth Pro2 | CE6: Thrombuster | CF6: 032 | CG6: 033 | CH6: 034 | CI6: FILTRAP | CJ6: SoutenirCV | CK6: 035 | CL6: 036 | CM6: ボストン37 | CN6: フィリップス | CO6: テルモ38 | CP6: 039 | CQ6: 040 | CR6: 041 | CS6: 042 | CT6: 043 | CU6: Perclose | CV6: Exoseal | CW6: Angio-seal | CX6: 044 | CY6: 045 | CZ6: クロッサー | DA6: OUTBACK | DB6: 046 | DC6: 047 | DD6: 048 | DE6: Epic | DF6: ルミネックス | DG6: スマート49 | DH6: VBX50 | DI6: ジェネシス51 | DJ6: エクスプレスLD52 | DK6: Misago53 | DL6: 054 | DM6: 055 | DN6: ELUVIA56 | DO6: Supera57 | DP6: バイアバーン58 | DQ6: 059 | DR6: 060 | DS6: ゴア腹61 | DT6: メドトロ腹62 | DU6: 063 | DV6: 064 | DW6: 065 | DX6: デナリ66 | DY6: デナリ回収67 | DZ6: 068 | EA6: 069 | EB6: 070 | EC6: ジェネシス71 | ED6: エクスプレスSD | EE6: 072 | EF6: スマート | EG6: VBX | EH6: ジェネシス | EI6: エクスプレスLD | EJ6: Misago | EK6: ELUVIA | EL6: Supera | EM6: バイアバーン | EN6: その他33 | EO6: その他34 | EP6: ゴア腹 | EQ6: メドトロ腹 | ER6: その他35 | ES6: その他36 | ET6: その他37 | EU6: デナリ | EV6: デナリ回収 | EW6: その他38
A7: 2000-01-01 | B7: 10 | C7: 2 | D7: 1 | E7: 2 | F7: 3 | G7: 1 | H7: 2 | I7: 2 | J7: 1 | K7: 1 | L7: 1 | M7: 1 | N7: 1 | O7: 0 | P7: 4 | Q7: 1 | R7: 1 | S7: 1 | T7: 0 | U7: 0 | V7: 0 | W7: 5 | X7: 3 | Y7: 2 | Z7: 1 | AA7: 1 | AB7: 0 | AC7: 0 | AD7: 5 | AE7: 2 | AF7: 2 | AG7: 5 | AH7: 2 | AI7: 2 | AJ7: 2 | AK7: 5 | AL7: 0 | AM7: 0 | AN7: 0 | AO7: 3 | AP7: 2 | AQ7: 0 | AR7: 0 | AS7: 0 | AT7: 2 | AU7: 2 | AV7: 0 | AW7: 0 | AX7: 0 | AY7: 5 | AZ7: 3 | BA7: 3 | BB7: 0 | BC7: 0 | BD7: 0 | BE7: 4 | BF7: 5 | BG7: 4 | BH7: 0 | BI7: 0 | BJ7: 0 | BK7: 5 | BL7: 0 | BM7: 0 | BN7: 4 | BO7: 2 | BP7: 3 | BQ7: 0 | BR7: 0 | BS7: 0 | BT7: 0 | BU7: 5 | BV7: 3 | BW7: 2 | BX7: 2 | BY7: 0 | BZ7: 0 | CA7: 5 | CB7: 0 | CC7: 0 | CD7: 3 | CE7: 6 | CF7: 0 | CG7: 0 | CH7: 0 | CI7: 2 | CJ7: 2 | CK7: 0 | CL7: 0 | CM7: 5 | CN7: 2 | CO7: 3 | CP7: 0 | CQ7: 0 | CR7: 0 | CS7: 0 | CT7: 0 | CU7: 2 | CV7: 3 | CW7: 4 | CX7: 0 | CY7: 0 | CZ7: 2 | DA7: 5 | DB7: 0 | DC7: 0 | DD7: 0 | DE7: 3 | DF7: 2 | DG7: 3 | DH7: 2 | DI7: 2 | DJ7: 2 | DK7: 0 | DL7: 0 | DM7: 0 | DN7: 4 | DO7: 3 | DP7: 2 | DQ7: 0 | DR7: 0 | DS7: 4 | DT7: 2 | DU7: 0 | DV7: 0 | DW7: 0 | DX7: 3 | DY7: 2 | DZ7: 0 | EA7: 0 | EB7: 0 | EC7: 3 | ED7: 3 | EE7: 0

Sheet PCIレポート
N6: =集計シート!DL5 -> Diamondback | O6: =集計シート!DL4 -> 4
B7: PCI | C7: =集計シート!B4 -> 15 | N7: =集計シート!DM5 -> ROTA | O7: =集計シート!DM4 -> 3
N8: =集計シート!DN5 -> DCA | O8: =集計シート!DN4 -> 5
N9: =集計シート!DO5 -> Excimer Laser | O9: =集計シート!DO4 -> 2
C13: =集計シート!AV5 -> Ultimaster | F13: =集計シート!AV4 -> 2 | G13: =F13/(F13+F14+F15+F16+F17+F18+F19+F20+F21) -> 0.07692307692 | AI13: Ultimaster | AJ13: Xience | AK13: Synergy XD | AL13: Resolute Onyx | AM13: Orsiro | AN13: GRAFTMASTER | AO13: Croflex ISAR NEO | AP13: 0 | AQ13: 0 | AR13: 0
C14: =集計シート!AW5 -> Xience | F14: =集計シート!AW4 -> 3 | G14: =F14/(F13+F14+F15+F16+F17+F18+F19+F20+F21) -> 0.1153846154 | AI14: =G13 -> 0.07692307692 | AJ14: =G14 -> 0.1153846154 | AK14: =G15 -> 0.3461538462 | AL14: =G16 -> 0.07692307692 | AM14: =G17 -> 0.1923076923 | AN14: =G18 -> 0.03846153846 | AO14: =G19 -> 0.1538461538 | AP14: =G20 -> 0 | AQ14: =G21 -> 0 | AR14: =G22 -> 0
C15: =集計シート!AX5 -> Synergy XD | F15: =集計シート!AX4 -> 9 | G15: =F15/(F13+F14+F15+F16+F17+F18+F19+F20+F21) -> 0.3461538462
C16: =集計シート!AY5 -> Resolute Onyx | F16: =集計シート!AY4 -> 2 | G16: =F16/(F13+F14+F15+F16+F17+F18+F19+F20+F21) -> 0.07692307692
C17: =集計シート!AZ5 -> Orsiro | F17: =集計シート!AZ4 -> 5 | G17: =F17/(F13+F14+F15+F16+F17+F18+F19+F20+F21) -> 0.1923076923
C18: =集計シート!BA5 -> GRAFTMASTER | F18: =集計シート!BA4 -> 1 | G18: =F18/(F13+F14+F15+F16+F17+F18+F19+F20+F21) -> 0.03846153846
C19: =集計シート!BB5 -> Croflex ISAR NEO | F19: =集計シート!BB4 -> 4 | G19: =F19/(F13+F14+F15+F16+F17+F18+F19+F20+F21) -> 0.1538461538
C20: =集計シート!BC5 -> 0 | F20: =集計シート!BC4 -> 0 | G20: =F20/(F13+F14+F15+F16+F17+F18+F19+F20+F21) -> 0
C21: =集計シート!BD5 -> 0 | F21: =集計シート!BD4 -> 0 | G21: =F21/(F13+F14+F15+F16+F17+F18+F19+F20+F21) -> 0
C22: Total | F22: =SUM(F13:F21) -> 26
C28: =集計シート!AR5 -> SeQuent Please | F28: =集計シート!AR4 -> 3 | G28: =F28/(F28+F29+F30+F31) -> 0.5 | K28: =集計シート!D5 -> PressureWireX | N28: =集計シート!D4 -> 2 | O28: =N28/(N28+N29+N30+N31+N32) -> 0.2
C29: =集計シート!AS5 -> Agent | F29: =集計シート!AS4 -> 3 | G29: =F29/(F28+F29+F30+F31) -> 0.5 | K29: =集計シート!E5 -> COMETⅡ | N29: =集計シート!E4 -> 3 | O29: =N29/(N28+N29+N30+N31+N32) -> 0.3
C30: =集計シート!AT5 -> 0 | F30: =集計シート!AT4 -> 0 | G30: =F30/(F28+F29+F30+F31) -> 0 | K30: =集計シート!F5 -> FFRangio | N30: =集計シート!F4 -> 5 | O30: =N30/(N28+N29+N30+N31+N32) -> 0.5
C31: =集計シート!AU5 -> 0 | F31: =集計シート!AU4 -> 0 | G31: =F31/(F28+F29+F30+F31) -> 0 | K31: =集計シート!G5 -> 0 | N31: =集計シート!G4 -> 0 | O31: =N31/(N28+N29+N30+N31+N32) -> 0
K32: =集計シート!H5 -> 0 | N32: =集計シート!H4 -> 0 | O32: =N32/(N28+N29+N30+N31+N32) -> 0
C33: Total | F33: =SUM(F28:F32) -> 6 | K33: Total | N33: =SUM(N28:N32) -> 10
C38: =集計シート!I5 -> ASAHI Hyperion | F38: =集計シート!I4 -> 12 | G38: =F38/(F38+F39+F40+F41+F42+F43+F44) -> 0.7058823529 | K38: =集計シート!P5 -> 朝日インテック | N38: =集計シート!P4 -> 5 | O38: =N38/(N38+N39+N40+N41+N42+N43+N44+N45) -> 0.4545454545
C39: =集計シート!J5 -> Heartrail2 | F39: =集計シート!J4 -> 1 | G39: =F39/(F38+F39+F40+F41+F42+F43+F44) -> 0.05882352941 | K39: =集計シート!Q5 -> テルモ | N39: =集計シート!Q4 -> 1 | O39: =N39/(N38+N39+N40+N41+N42+N43+N44+N45) -> 0.09090909091
C40: =集計シート!K5 -> LAUNCHER/TAIGA | F40: =集計シート!K4 -> 2 | G40: =F40/(F38+F39+F40+F41+F42+F43+F44) -> 0.1176470588 | K40: =集計シート!R5 -> アボット | N40: =集計シート!R4 -> 1 | O40: =N40/(N38+N39+N40+N41+N42+N43+N44+N45) -> 0.09090909091
C41: =集計シート!L5 -> ROADMASTER | F41: =集計シート!L4 -> 2 | G41: =F41/(F38+F39+F40+F41+F42+F43+F44) -> 0.1176470588 | K41: =集計シート!S5 -> ボストン | N41: =集計シート!S4 -> 1 | O41: =N41/(N38+N39+N40+N41+N42+N43+N44+N45) -> 0.09090909091
C42: =集計シート!M5 -> 0 | F42: =集計シート!M4 -> 0 | G42: =F42/(F38+F39+F40+F41+F42+F43+F44) -> 0 | K42: =集計シート!T5 -> 大塚メディカル | N42: =集計シート!T4 -> 1 | O42: =N42/(N38+N39+N40+N41+N42+N43+N44+N45) -> 0.09090909091
C43: =集計シート!N5 -> 0 | F43: =集計シート!N4 -> 0 | G43: =F43/(F38+F39+F40+F41+F42+F43+F44) -> 0 | K43: =集計シート!U5 -> ニプロ | N43: =集計シート!U4 -> 2 | O43: =N43/(N38+N39+N40+N41+N42+N43+N44+N45) -> 0.1818181818
C44: =集計シート!O5 -> 0 | F44: =集計シート!O4 -> 0 | G44: =F44/(F38+F39+F40+F41+F42+F43+F44) -> 0 | K44: =集計シート!V5 -> 0 | N44: =集計シート!V4 -> 0 | O44: =N44/(N38+N39+N40+N41+N42+N43+N44+N45) -> 0
K45: =集計シート!W5 -> 0 | N45: =集計シート!W4 -> 0 | O45: =N45/(N38+N39+N40+N41+N42+N43+N44+N45) -> 0
C46: Total | F46: =SUM(F38:F45) -> 17 | K46: Total | N46: =SUM(N38:N45) -> 11
C52: =集計シート!X5 -> テルモ | F52: =集計シート!X4 -> 2 | G52: =F52/(F52+F53+F54+F55+F56+F57+F58+F59+F60+F61+F62) -> 0.1818181818 | K52: =集計シート!AI5 -> Wolverine | N52: =集計シート!AI4 -> 5 | O52: =N52/(N52+N53+N54+N55+N56+N57+N58+N59+N60) -> 0.3846153846
C53: =集計シート!Y5 -> カネカ | F53: =集計シート!Y4 -> 1 | G53: =F53/(F52+F53+F54+F55+F56+F57+F58+F59+F60+F61+F62) -> 0.09090909091 | K53: =集計シート!AJ5 -> Ryusei | N53: =集計シート!AJ4 -> 1 | O53: =N53/(N52+N53+N54+N55+N56+N57+N58+N59+N60) -> 0.07692307692
C54: =集計シート!Z5 -> ネイチ | F54: =集計シート!Z4 -> 1 | G54: =F54/(F52+F53+F54+F55+F56+F57+F58+F59+F60+F61+F62) -> 0.09090909091 | K54: =集計シート!AK5 -> NSE | N54: =集計シート!AK4 -> 5 | O54: =N54/(N52+N53+N54+N55+N56+N57+N58+N59+N60) -> 0.3846153846
C55: =集計シート!AA5 -> メドトロ | F55: =集計シート!AA4 -> 2 | G55: =F55/(F52+F53+F54+F55+F56+F57+F58+F59+F60+F61+F62) -> 0.1818181818 | K55: =集計シート!AL5 -> Score Flex NC | N55: =集計シート!AL4 -> 1 | O55: =N55/(N52+N53+N54+N55+N56+N57+N58+N59+N60) -> 0.07692307692
C56: =集計シート!AB5 -> アボット | F56: =集計シート!AB4 -> 1 | G56: =F56/(F52+F53+F54+F55+F56+F57+F58+F59+F60+F61+F62) -> 0.09090909091 | K56: =集計シート!AM5 -> Angio Sculpt | N56: =集計シート!AM4 -> 1 | O56: =N56/(N52+N53+N54+N55+N56+N57+N58+N59+N60) -> 0.07692307692
C57: =集計シート!AC5 -> 朝日インテック | F57: =集計シート!AC4 -> 1 | G57: =F57/(F52+F53+F54+F55+F56+F57+F58+F59+F60+F61+F62) -> 0.09090909091 | K57: =集計シート!AN5 -> 0 | N57: =集計シート!AN4 -> 0 | O57: =N57/(N52+N53+N54+N55+N56+N57+N58+N59+N60) -> 0
C58: =集計シート!AD5 -> ニプロ | F58: =集計シート!AD4 -> 2 | G58: =F58/(F52+F53+F54+F55+F56+F57+F58+F59+F60+F61+F62) -> 0.1818181818 | K58: =集計シート!AO5 -> 0 | N58: =集計シート!AO4 -> 0 | O58: =N58/(N52+N53+N54+N55+N56+N57+N58+N59+N60) -> 0
C59: =集計シート!AE5 -> ボストン | F59: =集計シート!AE4 -> 1 | G59: =F59/(F52+F53+F54+F55+F56+F57+F58+F59+F60+F61+F62) -> 0.09090909091 | K59: =集計シート!AP5 -> 0 | N59: =集計シート!AP4 -> 0 | O59: =N59/(N52+N53+N54+N55+N56+N57+N58+N59+N60) -> 0
C60: =集計シート!AF5 -> 0 | F60: =集計シート!AF4 -> 0 | G60: =F60/(F52+F53+F54+F55+F56+F57+F58+F59+F60+F61+F62) -> 0 | K60: =集計シート!AQ5 -> 0 | N60: =集計シート!AQ4 -> 0 | O60: =N60/(N52+N53+N54+N55+N56+N57+N58+N59+N60) -> 0
C61: =集計シート!AG5 -> 0 | F61: =集計シート!AG4 -> 0 | G61: =F61/(F52+F53+F54+F55+F56+F57+F58+F59+F60+F61+F62) -> 0
C62: =集計シート!AH5 -> 0 | F62: =集計シート!AH4 -> 0 | G62: =F62/(F52+F53+F54+F55+F56+F57+F58+F59+F60+F61+F62) -> 0
C63: Total | F63: =SUM(F52:F62) -> 11 | K63: Total | N63: =SUM(N52:N62) -> 13
C69: =集計シート!BN5 -> Asahi Caravel | F69: =集計シート!BN4 -> 5 | G69: =F69/(F69+F70+F71+F72+F73+F74+F75) -> 0.4166666667 | K69: =集計シート!BU5 -> ASAHI Corsair Pro | N69: =集計シート!BU4 -> 5 | O69: =N69/(N69+N70+N71+N72+N73+N74) -> 0.4545454545
C70: =集計シート!BO5 -> Zizai | F70: =集計シート!BO4 -> 5 | G70: =F70/(F69+F70+F71+F72+F73+F74+F75) -> 0.4166666667 | K70: =集計シート!BV5 -> Tornus Pro | N70: =集計シート!BV4 -> 2 | O70: =N70/(N69+N70+N71+N72+N73+N74) -> 0.1818181818
C71: =集計シート!BP5 -> Mizuki | F71: =集計シート!BP4 -> 1 | G71: =F71/(F69+F70+F71+F72+F73+F74+F75) -> 0.08333333333 | K71: =集計シート!BW5 -> Finecross | N71: =集計シート!BW4 -> 2 | O71: =N71/(N69+N70+N71+N72+N73+N74) -> 0.1818181818
C72: =集計シート!BQ5 -> Mogul | F72: =集計シート!BQ4 -> 1 | G72: =F72/(F69+F70+F71+F72+F73+F74+F75) -> 0.08333333333 | K72: =集計シート!BX5 -> ルミネ | N72: =集計シート!BX4 -> 2 | O72: =N72/(N69+N70+N71+N72+N73+N74) -> 0.1818181818
C73: =集計シート!BR5 -> 0 | F73: =集計シート!BR4 -> 0 | G73: =F73/(F69+F70+F71+F72+F73+F74+F75) -> 0 | K73: =集計シート!BY5 -> 0 | N73: =集計シート!BY4 -> 0 | O73: =N73/(N69+N70+N71+N72+N73+N74) -> 0
C74: =集計シート!BS5 -> 0 | F74: =集計シート!BS4 -> 0 | G74: =F74/(F69+F70+F71+F72+F73+F74+F75) -> 0 | K74: =集計シート!BZ5 -> 0 | N74: =集計シート!BZ4 -> 0 | O74: =N74/(N69+N70+N71+N72+N73+N74) -> 0
C75: =集計シート!BT5 -> 0 | F75: =集計シート!BT4 -> 0 | G75: =F75/(F69+F70+F71+F72+F73+F74+F75) -> 0
C76: Total | F76: =SUM(F69:F75) -> 12 | K76: Total | N76: =SUM(N69:N75) -> 11
C82: =集計シート!BF5 -> ニプロ | F82: =集計シート!BF4 -> 3 | G82: =F82/(F82+F83+F84+F85+F86) -> 0.25 | K82: =集計シート!CS5 -> ボストン | N82: =集計シート!CS4 -> 1 | O82: =N82/(N82+N83+N84+N85+N86) -> 0.07692307692
C83: =集計シート!BG5 -> カネカ | F83: =集計シート!BG4 -> 2 | G83: =F83/(F82+F83+F84+F85+F86) -> 0.1666666667 | K83: =集計シート!CT5 -> テルモ | N83: =集計シート!CT4 -> 1 | O83: =N83/(N82+N83+N84+N85+N86) -> 0.07692307692
C84: =集計シート!BH5 -> メドトロ | F84: =集計シート!BH4 -> 5 | G84: =F84/(F82+F83+F84+F85+F86) -> 0.4166666667 | K84: =集計シート!CU5 -> フィリップス | N84: =集計シート!CU4 -> 5 | O84: =N84/(N82+N83+N84+N85+N86) -> 0.3846153846
C85: =集計シート!BI5 -> ボストン | F85: =集計シート!BI4 -> 2 | G85: =F85/(F82+F83+F84+F85+F86) -> 0.1666666667 | K85: =集計シート!CV5 -> ニプロ | N85: =集計シート!CV4 -> 1 | O85: =N85/(N82+N83+N84+N85+N86) -> 0.07692307692
C86: =集計シート!BJ5 -> 0 | F86: =集計シート!BJ4 -> 0 | G86: =F86/(F82+F83+F84+F85+F86) -> 0 | K86: =集計シート!CW5 -> アシスト | N86: =集計シート!CW4 -> 5 | O86: =N86/(N82+N83+N84+N85+N86) -> 0.3846153846
C87: Total | F87: =SUM(F82:F86) -> 12 | K87: Total | N87: =SUM(N82:N86) -> 13
